[Event "44th Chess Olympiad Women 2022"]
[Site "Chennai"]
[Date "2022.07.31"]
[Round "3.18"]
[White "Fronda, Jan Jodilyn"]
[Black "Eric, Jovana"]
[Result "1/2-1/2"]
[WhiteElo "2181"]
[BlackElo "2271"]
[Annotator "RC"]
[PlyCount "118"]
[EventDate "2022.??.??"]
[TimeControl "60"]

1. e4 {[%emt 0:00:43]} c5 {[%emt 0:00:11]} 2. Nf3 {[%emt 0:00:23]} d6 {[%emt 0:
00:00]} 3. Bb5+ {[%emt 0:00:56]} Nd7 {[%emt 0:00:30]} 4. c3 {[%emt 0:01:39]}
Ngf6 {[%emt 0:01:01]} 5. d3 {[%emt 0:01:59]} a6 {[%emt 0:01:28]} 6. Ba4 {
[%emt 0:00:16]} b5 {[%emt 0:00:27]} 7. Bc2 {[%emt 0:00:20]} Bb7 {[%emt 0:00:26]
} 8. Nbd2 {[%emt 0:01:22]} e6 {[%emt 0:01:44]} 9. O-O {[%emt 0:00:32]} Be7 {
[%emt 0:00:38]} 10. Qe2 {[%emt 0:01:39]} Qc7 {[%emt 0:01:36]} 11. a4 {[%emt 0:
00:00]} O-O {[%emt 0:03:28]} 12. Re1 {[%emt 0:00:56]} b4 {[%emt 0:06:04]} 13.
a5 {[%emt 0:02:08]} Rac8 {[%emt 0:05:05]} 14. Bb3 {[%emt 0:08:40]} Rfe8 {
[%emt 0:03:42]} 15. h3 {[%emt 0:24:25]} Bf8 {[%emt 0:03:26]} 16. cxb4 {[%emt 0:
00:00]} cxb4 {[%emt 0:00:06]} 17. d4 {[%emt 0:00:04]} h6 {[%emt 0:07:28]} 18.
Ra4 {[%emt 0:03:52]} Bc6 {[%emt 0:06:49]} 19. Ra1 {[%emt 0:05:38]} Bb5 {
[%emt 0:01:53]} 20. Qe3 {[%emt 0:00:13]} e5 {[%emt 0:04:57]} 21. d5 {[%emt 0:
00:00]} Nc5 {[%emt 0:00:34]} 22. Bc2 {[%emt 0:00:53]} Nb7 {[%emt 0:02:23]} 23.
Bd3 {[%emt 0:00:48]} Nxa5 {[%emt 0:01:21]} 24. Bxb5 {[%emt 0:01:48]} axb5 {
[%emt 0:00:05]} 25. b3 {[%emt 0:05:46]} Ra8 {[%emt 0:04:50]} 26. Bb2 {[%emt 0:
00:00]} Nd7 {[%emt 0:00:38]} 27. Rec1 {[%emt 0:00:15]} Nc5 {[%emt 0:00:07]} 28.
Ne1 {[%emt 0:01:01]} Be7 {[%emt 0:03:17]} 29. g3 {[%emt 0:01:08]} Qd7 {[%emt 0:
00:00]} 30. Kh2 {[%emt 0:00:06]} f5 {[%emt 0:03:22]} 31. Nc2 {[%emt 0:01:41]}
fxe4 {[%emt 0:02:37]} 32. h4 {[%emt 0:01:16]} Nd3 {[%emt 0:04:51]} 33. Rcb1 {
[%emt 0:00:20]} Qc7 {[%emt 0:02:18]} 34. Ne1 {[%emt 0:01:08]} Rf8 {[%emt 0:00:
00]} 35. Nxe4 {[%emt 0:01:41]} Nxe1 {[%emt 0:01:28]} 36. Rxe1 {[%emt 0:02:08]}
Qc2 {[%emt 0:00:11]} 37. Rab1 {[%emt 0:00:08]} Qxb3 {[%emt 0:02:56]} 38. Qxb3 {
[%emt 0:00:21]} Nxb3 {[%emt 0:00:05]} 39. Bxe5 {[%emt 0:00:05]} Nd2 {[%emt 0:
00:00]} 40. Nxd2 {[%emt 0:01:10]} dxe5 {[%emt 0:00:05]} 41. Ne4 {[%emt 0:31:14]
} Ra6 {[%emt 0:32:47]} 42. Kg2 {[%emt 0:00:00]} Rd8 {[%emt 0:00:00]} 43. d6 {
[%emt 0:00:00]} Bxd6 {[%emt 0:00:00]} 44. Nxd6 {[%emt 0:00:00]} Raxd6 {[%emt 0:
00:00]} 45. Rxe5 {[%emt 0:00:00]} Rd5 {[%emt 0:00:00]} 46. Rxd5 {[%emt 0:00:00]
} Rxd5 {[%emt 0:00:00]} 47. Rxb4 {[%emt 0:00:00]} Kf7 {[%emt 0:00:00]} 48. Kf3
{[%emt 0:00:00]} Ke6 {[%emt 0:00:00]} 49. Ke4 {[%emt 0:00:00]} Kd6 {[%emt 0:00:
00]} 50. f4 {[%emt 0:00:00]} Kc6 {[%emt 0:00:00]} 51. g4 {[%emt 0:00:00]} Rd1 {
[%emt 0:00:00]} 52. Kf5 {[%emt 0:00:00]} Kc5 {[%emt 0:00:00]} 53. Rb2 {[%emt 0:
00:00]} Rd4 {[%emt 0:00:00]} 54. g5 {[%emt 0:00:00]} b4 {[%emt 0:00:21]} 55.
Kg6 {[%emt 0:00:00]} Rxf4 {[%emt 0:03:39]} 56. Kxg7 {[%emt 0:00:00]} hxg5 {
[%emt 0:02:15]} 57. hxg5 {[%emt 0:00:00]} Rg4 {[%emt 0:00:04]} 58. g6 {[%emt 0:
00:00]} Kc4 {[%emt 0:00:10]} 59. Kf7 {[%emt 0:00:00]} Kc3 {[%emt 0:00:46]}
1/2-1/2

[Event "44th Chess Olympiad Women 2022"]
[Site "Chennai"]
[Date "2022.07.31"]
[Round "3.18"]
[White "Injac, Teodora"]
[Black "Frayna, Janelle Mae"]
[Result "1/2-1/2"]
[WhiteElo "2372"]
[BlackElo "2224"]
[Annotator "RC"]
[PlyCount "55"]
[EventDate "2022.??.??"]
[TimeControl "60"]

1. d4 {[%emt 0:00:04]} Nf6 {[%emt 0:00:35]} 2. c4 {[%emt 0:00:11]} c6 {[%emt 0:
00:00]} 3. Nf3 {[%emt 0:01:25]} d5 {[%emt 0:00:06]} 4. e3 {[%emt 0:00:23]} Bf5
{[%emt 0:02:32]} 5. Nc3 {[%emt 0:00:33]} e6 {[%emt 0:00:06]} 6. Nh4 {[%emt 0:
00:00]} Be4 {[%emt 0:00:17]} 7. f3 {[%emt 0:02:50]} Bg6 {[%emt 0:02:49]} 8. Qb3
{[%emt 0:00:15]} Qc7 {[%emt 0:06:31]} 9. cxd5 {[%emt 0:03:15]} exd5 {[%emt 0:
00:00]} 10. Nxg6 {[%emt 0:07:06]} hxg6 {[%emt 0:00:07]} 11. Bd2 {[%emt 0:01:00]
} Nbd7 {[%emt 0:01:48]} 12. O-O-O {[%emt 0:13:42]} Qb6 {[%emt 0:17:24]} 13. Be2
{[%emt 0:13:57]} Qxb3 {[%emt 0:01:41]} 14. axb3 {[%emt 0:00:28]} Bb4 {[%emt 0:
00:00]} 15. g4 {[%emt 0:07:58]} g5 {[%emt 0:02:33]} 16. Be1 {[%emt 0:10:16]}
O-O-O {[%emt 0:00:50]} 17. h4 {[%emt 0:05:18]} Rde8 {[%emt 0:02:57]} 18. Bf2 {
[%emt 0:03:20]} gxh4 {[%emt 0:05:21]} 19. g5 {[%emt 0:00:22]} Ng8 {[%emt 0:00:
00]} 20. Bd3 {[%emt 0:01:58]} Rh5 {[%emt 0:03:21]} 21. Rdg1 {[%emt 0:02:27]}
Ne7 {[%emt 0:04:59]} 22. Rh3 {[%emt 0:10:34]} Reh8 {[%emt 0:08:03]} 23. Rg4 {
[%emt 0:01:29]} Nf8 {[%emt 0:01:39]} 24. Ne2 {[%emt 0:06:19]} Ne6 {[%emt 0:00:
00]} 25. f4 {[%emt 0:03:35]} g6 {[%emt 0:00:42]} 26. Rgxh4 {[%emt 0:00:16]}
Rxh4 {[%emt 0:00:14]} 27. Rxh4 {[%emt 0:00:04]} Rxh4 {[%emt 0:00:05]} 28. Bxh4
{[%emt 0:00:54]} 1/2-1/2

[Event "44th Chess Olympiad Women 2022"]
[Site "Chennai"]
[Date "2022.07.31"]
[Round "3.18"]
[White "Mordido, Kylen Joy"]
[Black "Gajcin, Marina"]
[Result "1/2-1/2"]
[WhiteElo "2023"]
[BlackElo "2271"]
[Annotator "RC"]
[PlyCount "156"]
[EventDate "2022.??.??"]
[TimeControl "60"]

1. c4 {[%emt 0:00:31]} Nf6 {[%emt 0:00:29]} 2. Nc3 {[%emt 0:00:57]} c5 {
[%emt 0:00:19]} 3. Nf3 {[%emt 0:05:04]} Nc6 {[%emt 0:00:53]} 4. d4 {[%emt 0:00:
00]} cxd4 {[%emt 0:00:42]} 5. Nxd4 {[%emt 0:00:17]} e6 {[%emt 0:00:18]} 6. e3 {
[%emt 0:04:24]} Be7 {[%emt 0:06:56]} 7. Be2 {[%emt 0:03:01]} O-O {[%emt 0:00:
00]} 8. O-O {[%emt 0:01:31]} Qc7 {[%emt 0:13:21]} 9. b3 {[%emt 0:04:19]} b6 {
[%emt 0:09:05]} 10. Bf3 {[%emt 0:06:34]} Bb7 {[%emt 0:01:18]} 11. Ncb5 {
[%emt 0:04:34]} Qb8 {[%emt 0:08:30]} 12. Bb2 {[%emt 0:04:09]} Rd8 {[%emt 0:00:
00]} 13. Qe2 {[%emt 0:12:00]} a6 {[%emt 0:03:42]} 14. Nxc6 {[%emt 0:05:52]}
dxc6 {[%emt 0:01:47]} 15. Nd4 {[%emt 0:00:49]} Qc8 {[%emt 0:00:37]} 16. Qc2 {
[%emt 0:06:13]} c5 {[%emt 0:10:23]} 17. Bxb7 {[%emt 0:00:59]} Qxb7 {[%emt 0:00:
00]} 18. Ne2 {[%emt 0:00:58]} Qe4 {[%emt 0:13:13]} 19. Qxe4 {[%emt 0:03:58]}
Nxe4 {[%emt 0:00:04]} 20. Rfd1 {[%emt 0:00:34]} b5 {[%emt 0:05:11]} 21. f3 {
[%emt 0:02:54]} Nd6 {[%emt 0:09:19]} 22. cxb5 {[%emt 0:08:30]} axb5 {[%emt 0:
00:00]} 23. Kf2 {[%emt 0:01:33]} f6 {[%emt 0:00:00]} 24. a3 {[%emt 0:01:44]}
Kf7 {[%emt 0:00:00]} 25. Bc3 {[%emt 0:04:26]} Ke8 {[%emt 0:01:54]} 26. Nf4 {
[%emt 0:01:47]} Kf7 {[%emt 0:00:10]} 27. Ne2 {[%emt 0:00:21]} Rdc8 {[%emt 0:00:
00]} 28. a4 {[%emt 0:05:21]} b4 {[%emt 0:01:17]} 29. Be1 {[%emt 0:00:27]} Nb7 {
[%emt 0:00:20]} 30. Rab1 {[%emt 0:04:46]} Na5 {[%emt 0:00:34]} 31. Nc1 {
[%emt 0:01:03]} c4 {[%emt 0:00:54]} 32. bxc4 {[%emt 0:00:27]} Rxc4 {[%emt 0:00:
00]} 33. Nd3 {[%emt 0:01:34]} Rc2+ {[%emt 0:01:30]} 34. Rd2 {[%emt 0:01:32]}
Rxd2+ {[%emt 0:00:42]} 35. Bxd2 {[%emt 0:00:01]} Nc6 {[%emt 0:02:08]} 36. Rc1 {
[%emt 0:00:36]} Ra6 {[%emt 0:01:01]} 37. Nb2 {[%emt 0:00:48]} Ke8 {[%emt 0:00:
00]} 38. Rc4 {[%emt 0:00:40]} Kd7 {[%emt 0:00:54]} 39. Ke2 {[%emt 0:00:27]} Bf8
{[%emt 0:01:23]} 40. Kd1 {[%emt 0:00:24]} Be7 {[%emt 0:00:42]} 41. Ke2 {
[%emt 0:30:42]} Kc7 {[%emt 0:12:09]} 42. Kd1 {[%emt 0:00:00]} Kb7 {[%emt 0:00:
00]} 43. Kc2 {[%emt 0:00:00]} Ra8 {[%emt 0:03:51]} 44. Be1 {[%emt 0:00:00]} f5
{[%emt 0:03:07]} 45. f4 {[%emt 0:00:00]} Ra6 {[%emt 0:03:35]} 46. Bd2 {[%emt 0:
00:00]} Ra8 {[%emt 0:02:29]} 47. Be1 {[%emt 0:00:00]} Rd8 {[%emt 0:01:16]} 48.
Kb1 {[%emt 0:00:00]} Kb6 {[%emt 0:02:06]} 49. Rc1 {[%emt 0:00:00]} Na5 {
[%emt 0:00:44]} 50. Rc2 {[%emt 0:02:24]} Bc5 {[%emt 0:00:51]} 51. Bd2 {[%emt 0:
00:00]} Rd7 {[%emt 0:00:50]} 52. Be1 {[%emt 0:00:52]} Rd5 {[%emt 0:00:28]} 53.
Bd2 {[%emt 0:00:19]} Ka6 {[%emt 0:00:44]} 54. Be1 {[%emt 0:00:43]} g6 {[%emt 0:
00:00]} 55. Re2 {[%emt 0:00:01]} Rd7 {[%emt 0:01:05]} 56. e4 {[%emt 0:00:44]}
Rd6 {[%emt 0:00:32]} 57. Rc2 {[%emt 0:01:09]} Nb7 {[%emt 0:00:30]} 58. exf5 {
[%emt 0:00:24]} exf5 {[%emt 0:00:07]} 59. Re2 {[%emt 0:00:09]} Na5 {[%emt 0:00:
00]} 60. Re5 {[%emt 0:00:21]} Rc6 {[%emt 0:00:41]} 61. Nd3 {[%emt 0:00:29]} Bd6
{[%emt 0:00:32]} 62. Rd5 {[%emt 0:01:29]} Rb6 {[%emt 0:00:32]} 63. Bf2 {
[%emt 0:00:39]} Rc6 {[%emt 0:00:08]} 64. Be1 {[%emt 0:00:35]} Rb6 {[%emt 0:00:
00]} 65. Bf2 {[%emt 0:00:42]} Rc6 {[%emt 0:00:11]} 66. Ne5 {[%emt 0:00:43]}
Bxe5 {[%emt 0:00:15]} 67. fxe5 {[%emt 0:00:04]} Nc4 {[%emt 0:01:21]} 68. Rd7 {
[%emt 0:00:47]} Na3+ {[%emt 0:00:00]} 69. Ka1 {[%emt 0:00:45]} Rc1+ {[%emt 0:
00:00]} 70. Kb2 {[%emt 0:00:21]} Rc2+ {[%emt 0:00:01]} 71. Kb3 {[%emt 0:00:03]}
Rxf2 {[%emt 0:00:07]} 72. Kxb4 {[%emt 0:00:19]} Nc2+ {[%emt 0:00:48]} 73. Kc3 {
[%emt 0:00:37]} Rxg2 {[%emt 0:01:57]} 74. Rxh7 {[%emt 0:00:37]} Re2 {[%emt 0:
00:00]} 75. Rg7 {[%emt 0:00:16]} Rxe5 {[%emt 0:00:24]} 76. Rxg6+ {[%emt 0:00:
00]} Ka5 {[%emt 0:00:02]} 77. Kxc2 {[%emt 0:00:19]} Re2+ {[%emt 0:00:05]} 78.
Kd3 {[%emt 0:00:08]} Rxh2 {[%emt 0:00:00]} 1/2-1/2

[Event "44th Chess Olympiad Women 2022"]
[Site "Chennai"]
[Date "2022.07.31"]
[Round "3.18"]
[White "Velikic, Adela"]
[Black "Mendoza, Shania Mae"]
[Result "1-0"]
[WhiteElo "2273"]
[BlackElo "2153"]
[Annotator "RC"]
[PlyCount "141"]
[EventDate "2022.??.??"]
[TimeControl "60"]

1. d4 {[%emt 0:00:03]} d5 {[%emt 0:00:55]} 2. c4 {[%emt 0:00:08]} e6 {[%emt 0:
00:00]} 3. Nf3 {[%emt 0:03:33]} c6 {[%emt 0:03:50]} 4. e3 {[%emt 0:04:15]} Nf6
{[%emt 0:02:29]} 5. Nc3 {[%emt 0:00:09]} Nbd7 {[%emt 0:01:44]} 6. Bd3 {[%emt 0:
00:00]} Bd6 {[%emt 0:06:15]} 7. O-O {[%emt 0:01:24]} e5 {[%emt 0:04:10]} 8.
cxd5 {[%emt 0:18:16]} cxd5 {[%emt 0:03:56]} 9. e4 {[%emt 0:14:29]} exd4 {
[%emt 0:15:53]} 10. Nxd4 {[%emt 0:14:35]} O-O {[%emt 0:15:11]} 11. Nf5 {
[%emt 0:04:01]} dxe4 {[%emt 0:07:54]} 12. Nxe4 {[%emt 0:04:25]} Nxe4 {[%emt 0:
00:00]} 13. Bxe4 {[%emt 0:00:33]} Be5 {[%emt 0:02:13]} 14. Qc2 {[%emt 0:05:44]}
Nf6 {[%emt 0:06:44]} 15. Bf3 {[%emt 0:04:23]} Re8 {[%emt 0:03:27]} 16. Rd1 {
[%emt 0:10:45]} Qc7 {[%emt 0:00:19]} 17. Qxc7 {[%emt 0:00:56]} Bxc7 {[%emt 0:
00:00]} 18. Ne3 {[%emt 0:01:12]} Rb8 {[%emt 0:01:10]} 19. Bd2 {[%emt 0:03:21]}
Be6 {[%emt 0:02:06]} 20. Bc3 {[%emt 0:00:00]} Nd7 {[%emt 0:03:41]} 21. Bd5 {
[%emt 0:02:03]} Nf8 {[%emt 0:00:18]} 22. Rac1 {[%emt 0:02:00]} Bf4 {[%emt 0:00:
00]} 23. Bxe6 {[%emt 0:00:50]} Nxe6 {[%emt 0:00:53]} 24. Rc2 {[%emt 0:00:56]}
Bxe3 {[%emt 0:02:18]} 25. fxe3 {[%emt 0:00:01]} Rbc8 {[%emt 0:00:14]} 26. Rd5 {
[%emt 0:00:52]} h6 {[%emt 0:00:27]} 27. Rf2 {[%emt 0:00:54]} Red8 {[%emt 0:00:
00]} 28. Rfd2 {[%emt 0:00:24]} Re8 {[%emt 0:01:18]} 29. Re5 {[%emt 0:00:37]}
Red8 {[%emt 0:01:01]} 30. Red5 {[%emt 0:00:18]} Re8 {[%emt 0:03:45]} 31. Re5 {
[%emt 0:00:01]} Red8 {[%emt 0:01:01]} 32. Red5 {[%emt 0:01:09]} Rxd5 {[%emt 0:
00:00]} 33. Rxd5 {[%emt 0:00:01]} Rc7 {[%emt 0:00:13]} 34. Kf2 {[%emt 0:00:58]}
Kf8 {[%emt 0:01:52]} 35. Ke2 {[%emt 0:00:32]} Ke7 {[%emt 0:00:27]} 36. Kd3 {
[%emt 0:00:38]} g6 {[%emt 0:00:43]} 37. Bb4+ {[%emt 0:00:26]} Ke8 {[%emt 0:00:
00]} 38. Bc3 {[%emt 0:00:28]} Ke7 {[%emt 0:00:07]} 39. h3 {[%emt 0:00:38]} f5 {
[%emt 0:00:59]} 40. Bb4+ {[%emt 0:00:18]} Ke8 {[%emt 0:00:29]} 41. Rd6 {
[%emt 0:08:41]} Kf7 {[%emt 0:04:21]} 42. g4 {[%emt 0:06:02]} f4 {[%emt 0:06:04]
} 43. Ke2 {[%emt 0:04:47]} a6 {[%emt 0:08:34]} 44. Rd2 {[%emt 0:02:52]} g5 {
[%emt 0:04:17]} 45. Bd6 {[%emt 0:01:39]} fxe3 {[%emt 0:01:25]} 46. Kxe3 {
[%emt 0:00:28]} Rc1 {[%emt 0:01:22]} 47. Rf2+ {[%emt 0:02:11]} Kg6 {[%emt 0:00:
00]} 48. Ke4 {[%emt 0:03:39]} Re1+ {[%emt 0:05:12]} 49. Kd5 {[%emt 0:00:51]}
Re3 {[%emt 0:01:27]} 50. Be5 {[%emt 0:01:51]} Nd8 {[%emt 0:01:06]} 51. Rf6+ {
[%emt 0:01:51]} Kh7 {[%emt 0:00:01]} 52. Rf8 {[%emt 0:01:15]} Nc6 {[%emt 0:00:
00]} 53. Bc3 {[%emt 0:00:34]} Re7 {[%emt 0:02:13]} 54. Kd6 {[%emt 0:00:15]} Kg6
{[%emt 0:01:31]} 55. Rg8+ {[%emt 0:00:25]} Kf7 {[%emt 0:00:22]} 56. Rg7+ {
[%emt 0:00:25]} Ke8 {[%emt 0:00:38]} 57. Rxe7+ {[%emt 0:00:20]} Nxe7 {[%emt 0:
00:00]} 58. Bg7 {[%emt 0:00:51]} h5 {[%emt 0:00:26]} 59. Bf6 {[%emt 0:00:35]}
hxg4 {[%emt 0:00:04]} 60. hxg4 {[%emt 0:00:13]} Nc6 {[%emt 0:00:26]} 61. Bxg5 {
[%emt 0:00:23]} Nb4 {[%emt 0:01:24]} 62. Kc7 {[%emt 0:00:55]} Nxa2 {[%emt 0:00:
00]} 63. Bd2 {[%emt 0:00:12]} b5 {[%emt 0:00:23]} 64. Kb6 {[%emt 0:00:27]} Kf7
{[%emt 0:00:36]} 65. Kxa6 {[%emt 0:00:20]} b4 {[%emt 0:00:05]} 66. Kb5 {
[%emt 0:00:39]} Kg6 {[%emt 0:01:07]} 67. Kc4 {[%emt 0:00:22]} Kf6 {[%emt 0:00:
00]} 68. Kb3 {[%emt 0:00:15]} Nc3 {[%emt 0:00:01]} 69. bxc3 {[%emt 0:00:18]}
bxc3 {[%emt 0:00:01]} 70. Kxc3 {[%emt 0:00:08]} Ke5 {[%emt 0:00:02]} 71. Kd3 {
[%emt 0:00:20]} 1-0

[Event "44th Chess Olympiad Women 2022"]
[Site "Chennai"]
[Date "2022.07.31"]
[Round "3.19"]
[White "Belenkaya, Dina"]
[Black "Ortiz Verdezoto, Anahi"]
[Result "1-0"]
[WhiteElo "2256"]
[BlackElo "2046"]
[Annotator "RC"]
[PlyCount "89"]
[EventDate "2022.??.??"]
[TimeControl "60"]

1. e4 {[%emt 0:00:03]} e5 {[%emt 0:00:11]} 2. Nf3 {[%emt 0:00:07]} Nc6 {
[%emt 0:00:37]} 3. d4 {[%emt 0:00:16]} exd4 {[%emt 0:00:07]} 4. Nxd4 {[%emt 0:
00:00]} Nf6 {[%emt 0:00:06]} 5. Nxc6 {[%emt 0:00:08]} bxc6 {[%emt 0:00:05]} 6.
Nc3 {[%emt 0:00:14]} Bb4 {[%emt 0:00:07]} 7. Bd3 {[%emt 0:00:31]} d5 {[%emt 0:
00:00]} 8. exd5 {[%emt 0:00:10]} O-O {[%emt 0:00:09]} 9. O-O {[%emt 0:00:06]}
cxd5 {[%emt 0:00:05]} 10. Qf3 {[%emt 0:00:13]} c6 {[%emt 0:01:20]} 11. Bg5 {
[%emt 0:00:06]} Bd6 {[%emt 0:00:08]} 12. Rab1 {[%emt 0:07:31]} Be5 {[%emt 0:00:
00]} 13. h3 {[%emt 0:03:49]} h6 {[%emt 0:07:13]} 14. Bf4 {[%emt 0:01:15]} Qd6 {
[%emt 0:00:10]} 15. Bxe5 {[%emt 0:00:36]} Qxe5 {[%emt 0:00:02]} 16. Na4 {
[%emt 0:01:41]} a5 {[%emt 0:06:46]} 17. Rfe1 {[%emt 0:07:24]} Qd6 {[%emt 0:00:
00]} 18. Qe3 {[%emt 0:02:25]} Be6 {[%emt 0:05:14]} 19. Qc5 {[%emt 0:15:02]} Qc7
{[%emt 0:05:00]} 20. Qd4 {[%emt 0:03:17]} Nd7 {[%emt 0:05:40]} 21. Nc5 {
[%emt 0:01:13]} Nxc5 {[%emt 0:02:02]} 22. Qxc5 {[%emt 0:00:02]} Rab8 {[%emt 0:
00:00]} 23. a3 {[%emt 0:07:54]} Rfd8 {[%emt 0:06:13]} 24. b4 {[%emt 0:02:44]}
axb4 {[%emt 0:00:40]} 25. axb4 {[%emt 0:13:52]} Qb6 {[%emt 0:10:20]} 26. c3 {
[%emt 0:07:48]} d4 {[%emt 0:07:51]} 27. Qxb6 {[%emt 0:11:16]} Rxb6 {[%emt 0:00:
00]} 28. c4 {[%emt 0:00:09]} Rdb8 {[%emt 0:09:59]} 29. b5 {[%emt 0:00:11]} cxb5
{[%emt 0:00:05]} 30. cxb5 {[%emt 0:00:30]} Rd8 {[%emt 0:02:09]} 31. Rb4 {
[%emt 0:02:31]} Rd5 {[%emt 0:00:02]} 32. Kf1 {[%emt 0:04:51]} Bf5 {[%emt 0:00:
00]} 33. Re8+ {[%emt 0:00:57]} Kh7 {[%emt 0:00:06]} 34. Bc4 {[%emt 0:00:43]}
Rc5 {[%emt 0:03:19]} 35. Ke1 {[%emt 0:02:02]} Kg6 {[%emt 0:06:50]} 36. Kd2 {
[%emt 0:01:21]} Kf6 {[%emt 0:01:10]} 37. Rd8 {[%emt 0:01:08]} Be6 {[%emt 0:00:
00]} 38. Bd3 {[%emt 0:00:32]} Bf5 {[%emt 0:00:06]} 39. Bc4 {[%emt 0:00:23]} Be6
{[%emt 0:02:27]} 40. Be2 {[%emt 0:00:12]} Bd5 {[%emt 0:01:52]} 41. g3 {[%emt 0:
00:00]} Ke7 {[%emt 0:06:44]} 42. Rg8 {[%emt 0:00:00]} Bc6 {[%emt 0:01:16]} 43.
Rc8 {[%emt 0:00:00]} Kd6 {[%emt 0:02:24]} 44. Rxd4+ {[%emt 0:00:00]} Rd5 {
[%emt 0:00:03]} 45. Rxc6+ {[%emt 0:00:00]} 1-0

[Event "44th Chess Olympiad Women 2022"]
[Site "Chennai"]
[Date "2022.07.31"]
[Round "3.19"]
[White "Heredia Serrano, Carla"]
[Black "Efroimski, Marsel"]
[Result "0-1"]
[WhiteElo "2090"]
[BlackElo "2456"]
[Annotator "RC"]
[PlyCount "108"]
[EventDate "2022.??.??"]
[TimeControl "60"]

1. e4 {[%emt 0:00:05]} c5 {[%emt 0:00:03]} 2. Nf3 {[%emt 0:00:04]} g6 {[%emt 0:
00:00]} 3. c3 {[%emt 0:01:18]} d5 {[%emt 0:00:05]} 4. Bb5+ {[%emt 0:01:54]} Nc6
{[%emt 0:05:25]} 5. e5 {[%emt 0:03:08]} Qb6 {[%emt 0:03:50]} 6. Bxc6+ {[%emt 0:
00:00]} bxc6 {[%emt 0:00:05]} 7. O-O {[%emt 0:00:57]} Bg4 {[%emt 0:00:38]} 8.
d4 {[%emt 0:16:13]} Bxf3 {[%emt 0:05:03]} 9. Qxf3 {[%emt 0:00:04]} cxd4 {
[%emt 0:00:12]} 10. cxd4 {[%emt 0:00:24]} Qxd4 {[%emt 0:00:12]} 11. e6 {
[%emt 0:05:03]} fxe6 {[%emt 0:11:36]} 12. Bd2 {[%emt 0:02:31]} Nf6 {[%emt 0:00:
00]} 13. Bc3 {[%emt 0:00:21]} Qh4 {[%emt 0:00:46]} 14. Qe2 {[%emt 0:16:22]} Rd8
{[%emt 0:10:39]} 15. Nd2 {[%emt 0:13:51]} Bg7 {[%emt 0:14:09]} 16. Nf3 {
[%emt 0:06:51]} Qe4 {[%emt 0:07:15]} 17. Qa6 {[%emt 0:02:23]} Qc4 {[%emt 0:00:
00]} 18. Qxc4 {[%emt 0:05:24]} dxc4 {[%emt 0:00:07]} 19. Ng5 {[%emt 0:03:48]}
Rd6 {[%emt 0:01:15]} 20. Bb4 {[%emt 0:04:12]} Nd5 {[%emt 0:02:02]} 21. Ba3 {
[%emt 0:04:01]} Nf4 {[%emt 0:03:32]} 22. Rfe1 {[%emt 0:01:44]} Rd3 {[%emt 0:00:
00]} 23. Rac1 {[%emt 0:01:58]} Rxa3 {[%emt 0:05:01]} 24. bxa3 {[%emt 0:00:02]}
Nd3 {[%emt 0:00:07]} 25. Nxe6 {[%emt 0:00:09]} Bf6 {[%emt 0:00:38]} 26. Kf1 {
[%emt 0:01:21]} Kf7 {[%emt 0:00:47]} 27. Nf4 {[%emt 0:00:32]} Nxf4 {[%emt 0:00:
00]} 28. Rxc4 {[%emt 0:00:01]} Nd3 {[%emt 0:03:40]} 29. Rb1 {[%emt 0:00:09]}
Ne5 {[%emt 0:00:56]} 30. Ra4 {[%emt 0:00:11]} Rd8 {[%emt 0:00:22]} 31. Ke2 {
[%emt 0:00:32]} c5 {[%emt 0:04:23]} 32. Rd1 {[%emt 0:00:53]} Rb8 {[%emt 0:00:
00]} 33. f4 {[%emt 0:00:53]} Nc6 {[%emt 0:00:10]} 34. Rd2 {[%emt 0:00:29]} Bc3
{[%emt 0:00:56]} 35. Rd3 {[%emt 0:00:33]} Rb2+ {[%emt 0:00:24]} 36. Kf3 {
[%emt 0:00:30]} Bd4 {[%emt 0:01:22]} 37. Ra6 {[%emt 0:00:41]} Nd8 {[%emt 0:00:
00]} 38. h3 {[%emt 0:00:33]} Ne6 {[%emt 0:00:18]} 39. Rc6 {[%emt 0:00:28]} Rxa2
{[%emt 0:00:48]} 40. g3 {[%emt 0:00:36]} Bb2 {[%emt 0:01:13]} 41. Ke4 {[%emt 0:
00:00]} Bd4 {[%emt 0:06:50]} 42. Kd5 {[%emt 0:05:57]} Re2 {[%emt 0:00:12]} 43.
Rc8 {[%emt 0:06:58]} h5 {[%emt 0:00:14]} 44. Rb3 {[%emt 0:09:37]} h4 {[%emt 0:
00:00]} 45. gxh4 {[%emt 0:01:42]} Nxf4+ {[%emt 0:00:04]} 46. Kc4 {[%emt 0:00:
00]} Rc2+ {[%emt 0:00:33]} 47. Kb5 {[%emt 0:00:14]} e5 {[%emt 0:02:23]} 48. Kc6
{[%emt 0:02:17]} Ke6 {[%emt 0:02:04]} 49. Rf8 {[%emt 0:00:52]} Rb2 {[%emt 0:00:
00]} 50. Rg3 {[%emt 0:01:17]} Rb6+ {[%emt 0:00:19]} 51. Kc7 {[%emt 0:00:16]}
Nd5+ {[%emt 0:00:54]} 52. Kc8 {[%emt 0:00:16]} Ne7+ {[%emt 0:00:10]} 53. Kc7 {
[%emt 0:00:08]} e4 {[%emt 0:00:09]} 54. h5 {[%emt 0:00:14]} Be5+ {[%emt 0:00:
00]} 0-1

[Event "44th Chess Olympiad Women 2022"]
[Site "Chennai"]
[Date "2022.07.31"]
[Round "3.19"]
[White "Levitan, Ronit"]
[Black "Miranda Vargas, Analia Karen"]
[Result "1-0"]
[WhiteElo "2084"]
[BlackElo "1723"]
[Annotator "NA RC"]
[PlyCount "85"]
[EventDate "2022.??.??"]
[TimeControl "60"]

1. e4 {[%emt 0:00:34]} g6 {[%emt 0:00:09]} 2. d4 {[%emt 0:00:18]} Bg7 {[%emt 0:
00:00]} 3. Nf3 {[%emt 0:00:30]} d6 {[%emt 0:00:32]} 4. Nc3 {[%emt 0:00:25]} Nf6
{[%emt 0:00:08]} 5. h3 {[%emt 0:00:12]} c5 {[%emt 0:00:18]} 6. Be3 {[%emt 0:00:
00]} Qa5 {[%emt 0:07:50]} 7. Qd2 {[%emt 0:03:02]} O-O {[%emt 0:02:08]} 8. Be2 {
[%emt 0:09:22]} a6 {[%emt 0:09:42]} 9. O-O {[%emt 0:08:27]} Nc6 {[%emt 0:12:34]
} 10. d5 {[%emt 0:03:50]} Nb8 {[%emt 0:00:59]} 11. a4 {[%emt 0:00:21]} Nbd7 {
[%emt 0:01:49]} 12. Nh2 {[%emt 0:03:46]} Qb4 {[%emt 0:02:16]} 13. f3 {[%emt 0:
00:00]} Nh5 {[%emt 0:05:16]} 14. Rfb1 {[%emt 0:01:10]} Ng3 {[%emt 0:16:05]} 15.
Kf2 {[%emt 0:11:34]} Nxe2 {[%emt 0:11:57]} 16. Qxe2 {[%emt 0:02:37]} Nb6 {
[%emt 0:04:53]} 17. a5 {[%emt 0:01:00]} Nd7 {[%emt 0:09:54]} 18. Ra4 {[%emt 0:
00:00]} Bxc3 {[%emt 0:00:13]} 19. Rxb4 {[%emt 0:00:06]} Bxb4 {[%emt 0:00:04]}
20. Ra1 {[%emt 0:02:22]} c4 {[%emt 0:02:36]} 21. Qxc4 {[%emt 0:00:18]} Bc5 {
[%emt 0:00:14]} 22. Bxc5 {[%emt 0:01:15]} Nxc5 {[%emt 0:01:24]} 23. Nf1 {
[%emt 0:06:41]} Bd7 {[%emt 0:00:35]} 24. Ne3 {[%emt 0:00:32]} Rac8 {[%emt 0:00:
00]} 25. Qd4 {[%emt 0:00:14]} e6 {[%emt 0:06:50]} 26. dxe6 {[%emt 0:02:46]}
Bxe6 {[%emt 0:00:09]} 27. h4 {[%emt 0:03:30]} Rc6 {[%emt 0:01:29]} 28. h5 {
[%emt 0:00:22]} Nd7 {[%emt 0:00:29]} 29. f4 {[%emt 0:03:32]} Rfc8 {[%emt 0:00:
00]} 30. b3 {[%emt 0:02:06]} Nc5 {[%emt 0:00:31]} 31. Rh1 {[%emt 0:02:12]} Re8
{[%emt 0:00:58]} 32. b4 {[%emt 0:02:14]} Nd7 {[%emt 0:00:46]} 33. f5 {[%emt 0:
00:00]} Ba2 {[%emt 0:00:29]} 34. Ra1 {[%emt 0:02:13]} Re5 {[%emt 0:00:22]} 35.
Rxa2 {[%emt 0:00:07]} Nf6 {[%emt 0:00:05]} 36. Nd5 {[%emt 0:02:51]} Nxe4+ {
[%emt 0:00:40]} 37. Kg1 {[%emt 0:00:14]} Ng3 {[%emt 0:00:37]} 38. Qxe5 {
[%emt 0:02:54]} dxe5 {[%emt 0:00:07]} 39. Ne7+ {[%emt 0:00:03]} Kg7 {[%emt 0:
00:00]} 40. Nxc6 {[%emt 0:00:06]} bxc6 {[%emt 0:00:01]} 41. c4 {[%emt 0:31:10]}
Ne4 {[%emt 0:02:40]} 42. b5 {[%emt 0:00:00]} Nc5 {[%emt 0:05:02]} 43. bxc6 {
[%emt 0:00:00]} 1-0